[Event "Paul Keres Memorial Festival 2022"]
[Site "Pärnu, Estonia Resort Hotel & Spa"]
[Date "2022.07.21"]
[Round "6.8"]
[White "Dzjuba, Jegor"]
[Black "Olde, Grete"]
[Result "1/2-1/2"]
[TimeControl "60 min for 30 moves + 30 min until game end, from first move every move 30 sec time increment"]
[BlackTitle "WCM"]
[WhiteFideId "4516710"]
[BlackFideId "4503104"]
[WhiteElo "1495"]
[BlackElo "1904"]

1. e4 {[%clk 00:59:46]} {[%emt 00:01:13]} e5 {[%clk 01:00:47]} {[%emt
00:00:14]} 2. Nf3 {[%clk 00:59:27]} {[%emt 00:00:49]} Nc6 {[%clk 01:01:00]}
{[%emt 00:00:17]} 3. Bc4 {[%clk 00:59:22]} {[%emt 00:00:35]} Bc5 {[%clk
01:01:14]} {[%emt 00:00:16]} 4. d3 {[%clk 00:58:55]} {[%emt 00:00:57]} Nf6
{[%clk 01:00:06]} {[%emt 00:01:38]} 5. O-O {[%clk 00:59:07]} {[%emt 00:00:19]}
d6 {[%clk 00:59:54]} {[%emt 00:00:42]} 6. c3 {[%clk 00:56:58]} {[%emt
00:02:39]} h6 {[%clk 00:53:35]} {[%emt 00:06:49]} 7. a4 {[%clk 00:54:44]}
{[%emt 00:02:44]} a6 {[%clk 00:50:27]} {[%emt 00:03:38]} 8. Be3 {[%clk
00:51:09]} {[%emt 00:04:04]} Ba7 {[%clk 00:47:09]} {[%emt 00:03:48]} 9. Nbd2
{[%clk 00:49:55]} {[%emt 00:01:44]} O-O {[%clk 00:45:39]} {[%emt 00:02:00]} 10.
h3 {[%clk 00:47:49]} {[%emt 00:02:36]} Ne7 {[%clk 00:41:45]} {[%emt 00:04:24]}
11. Bxa7 {[%clk 00:42:24]} {[%emt 00:05:56]} Rxa7 {[%clk 00:42:06]} {[%emt
00:00:09]} 12. d4 {[%clk 00:40:51]} {[%emt 00:02:03]} Ng6 {[%clk 00:38:37]}
{[%emt 00:03:58]} 13. Kh2 {[%clk 00:31:39]} {[%emt 00:09:42]} Qe7 {[%clk
00:30:43]} {[%emt 00:08:24]} 14. Qe2 {[%clk 00:28:12]} {[%emt 00:03:58]} b6
{[%clk 00:24:23]} {[%emt 00:06:51]} 15. Qe3 {[%clk 00:24:13]} {[%emt 00:04:29]}
Bb7 {[%clk 00:19:14]} {[%emt 00:05:39]} 16. dxe5 {[%clk 00:22:52]} {[%emt
00:01:51]} dxe5 {[%clk 00:19:25]} {[%emt 00:00:19]} 17. a5 {[%clk 00:22:36]}
{[%emt 00:00:46]} Qd6 {[%clk 00:15:59]} {[%emt 00:03:56]} 18. Bd3 {[%clk
00:21:48]} {[%emt 00:01:18]} Nh5 {[%clk 00:14:03]} {[%emt 00:02:26]} 19. Nc4
{[%clk 00:20:43]} {[%emt 00:01:36]} Qe7 {[%clk 00:08:33]} {[%emt 00:05:59]} 20.
axb6 {[%clk 00:20:09]} {[%emt 00:01:05]} cxb6 {[%clk 00:08:16]} {[%emt
00:00:47]} 21. Qxb6 {[%clk 00:19:09]} {[%emt 00:01:30]} Bc8 {[%clk 00:07:55]}
{[%emt 00:00:51]} 22. Qd6 {[%clk 00:14:04]} {[%emt 00:05:35]} Qe8 {[%clk
00:03:30]} {[%emt 00:04:55]} 23. Ncxe5 {[%clk 00:10:24]} {[%emt 00:04:10]} Ngf4
{[%clk 00:03:03]} {[%emt 00:00:57]} 24. Bc4 {[%clk 00:08:20]} {[%emt 00:02:34]}
Kh8 {[%clk 00:02:33]} {[%emt 00:00:59]} 25. Rfe1 {[%clk 00:06:55]} {[%emt
00:01:56]} f6 {[%clk 00:02:02]} {[%emt 00:01:02]} 26. Nc6 {[%clk 00:01:28]}
{[%emt 00:05:57]} Rd7 {[%clk 00:01:41]} {[%emt 00:00:50]} 27. Qc5 {[%clk
00:01:25]} {[%emt 00:00:34]} Rc7 {[%clk 00:01:41]} {[%emt 00:00:29]} 28. Nfd4
{[%clk 00:01:23]} {[%emt 00:00:33]} Bb7 {[%clk 00:01:22]} {[%emt 00:00:50]} 29.
Bd5 {[%clk 00:01:02]} {[%emt 00:00:51]} Nd3 {[%clk 00:00:57]} {[%emt 00:00:54]}
30. Qb6 {[%clk 00:30:41]} {[%emt 00:00:52]} Bxc6 {[%clk 00:30:36]} {[%emt
00:00:51]} 31. Nxc6 {[%clk 00:24:02]} {[%emt 00:07:08]} Rxc6 {[%clk 00:24:25]}
{[%emt 00:06:42]} 32. Qxc6 {[%clk 00:22:30]} {[%emt 00:02:02]} Qe5+ {[%clk
00:20:19]} {[%emt 00:04:35]} 33. Kg1 {[%clk 00:20:45]} {[%emt 00:02:15]} Nxe1
{[%clk 00:20:35]} {[%emt 00:00:14]} 34. Rxe1 {[%clk 00:20:58]} {[%emt
00:00:17]} Nf4 {[%clk 00:20:40]} {[%emt 00:00:24]} 35. Re3 {[%clk 00:13:03]}
{[%emt 00:08:25]} Qg5 {[%clk 00:17:42]} {[%emt 00:03:29]} 36. g3 {[%clk
00:08:08]} {[%emt 00:05:26]} Nxh3+ {[%clk 00:16:46]} {[%emt 00:01:26]} 37. Kg2
{[%clk 00:07:45]} {[%emt 00:00:53]} Nf4+ {[%clk 00:16:54]} {[%emt 00:00:22]} 38.
Kf1 {[%clk 00:08:00]} {[%emt 00:00:15]} Ng6 {[%clk 00:15:37]} {[%emt 00:01:46]}
39. Qxa6 {[%clk 00:07:09]} {[%emt 00:01:22]} f5 {[%clk 00:14:03]} {[%emt
00:02:04]} 40. Qd6 {[%clk 00:02:59]} {[%emt 00:04:40]} fxe4 {[%clk 00:12:10]}
{[%emt 00:02:23]} 41. Bxe4 {[%clk 00:02:00]} {[%emt 00:01:29]} Rf6 {[%clk
00:07:59]} {[%emt 00:04:41]} 42. Bxg6 {[%clk 00:00:45]} {[%emt 00:01:44]} Rxg6
{[%clk 00:06:38]} {[%emt 00:01:52]} 43. Re8+ {[%clk 00:00:49]} {[%emt
00:00:26]} Kh7 {[%clk 00:07:05]} {[%emt 00:00:04]} 44. Qd8 {[%clk 00:00:44]}
{[%emt 00:00:35]} Qb5+ {[%clk 00:05:05]} {[%emt 00:02:30]} 45. Kg2 {[%clk
00:00:52]} {[%emt 00:00:22]} Qb7+ {[%clk 00:04:58]} {[%emt 00:00:37]} 46. Kh2
{[%clk 00:00:33]} {[%emt 00:00:50]} Rf6 {[%clk 00:04:38]} {[%emt 00:00:49]} 47.
Rh8+ {[%clk 00:00:34]} {[%emt 00:00:29]} Kg6 {[%clk 00:05:05]} {[%emt
00:00:04]} 48. Qe8+ {[%clk 00:00:47]} {[%emt 00:00:17]} Kg5 {[%clk 00:05:06]}
{[%emt 00:00:29]} 49. Qe3+ {[%clk 00:00:46]} {[%emt 00:00:30]} Kg6 {[%clk
00:05:29]} {[%emt 00:00:07]} 50. Qe8+ {[%clk 00:01:06]} {[%emt 00:00:10]} Kg5
{[%clk 00:05:46]} {[%emt 00:00:13]} 51. Qe5+ {[%clk 00:01:34]} {[%emt
00:00:02]} Kg6 {[%clk 00:05:54]} {[%emt 00:00:22]} 52. Qe8+ {[%emt 00:04:12]}
Kg5 53. Qe3+ {[%emt 00:00:05]} Kg6 54. Qe8+ 1/2-1/2

[Event "Paul Keres Memorial Festival 2022"]
[Site "Pärnu, Estonia Resort Hotel & Spa"]
[Date "2022.07.21"]
[Round "7.1"]
[White "Kantans, Toms"]
[Black "Sulskis, Sarunas"]
[Result "1/2-1/2"]
[TimeControl "60 min for 30 moves + 30 min until game end, from first move every move 30 sec time increment"]
[WhiteTitle "GM"]
[BlackTitle "GM"]
[WhiteFideId "11602945"]
[BlackFideId "12800112"]
[WhiteElo "2486"]
[BlackElo "2481"]

1. e4 {[%clk 00:57:56]} {[%emt 00:03:03]} e5 {[%clk 01:00:39]} {[%emt
00:00:21]} 2. Nf3 {[%clk 00:58:20]} {[%emt 00:00:06]} Nc6 {[%clk 01:00:59]}
{[%emt 00:00:10]} 3. Bb5 {[%clk 00:58:25]} {[%emt 00:00:25]} a6 {[%clk
01:00:39]} {[%emt 00:00:50]} 4. Ba4 {[%clk 00:58:49]} {[%emt 00:00:06]} Nf6
{[%clk 01:00:31]} {[%emt 00:00:38]} 5. O-O {[%clk 00:59:07]} {[%emt 00:00:12]}
b5 {[%clk 00:59:06]} {[%emt 00:01:55]} 6. Bb3 {[%clk 00:59:30]} {[%emt
00:00:07]} Bc5 {[%clk 00:59:31]} {[%emt 00:00:06]} 7. a4 {[%clk 00:55:09]}
{[%emt 00:04:51]} Rb8 {[%clk 00:57:44]} {[%emt 00:02:16]} 8. axb5 {[%clk
00:54:47]} {[%emt 00:00:52]} axb5 {[%clk 00:58:07]} {[%emt 00:00:07]} 9. Nxe5
{[%clk 00:55:12]} {[%emt 00:00:05]} Nxe5 {[%clk 00:58:24]} {[%emt 00:00:13]} 10.
d4 {[%clk 00:55:37]} {[%emt 00:00:05]} Bxd4 {[%clk 00:46:57]} {[%emt 00:11:57]}
11. Qxd4 {[%clk 00:56:01]} {[%emt 00:00:06]} d6 {[%clk 00:47:23]} {[%emt
00:00:04]} 12. f4 {[%clk 00:55:36]} {[%emt 00:00:55]} Nc6 {[%clk 00:45:15]}
{[%emt 00:02:37]} 13. Qc3 {[%clk 00:50:37]} {[%emt 00:05:29]} Bb7 {[%clk
00:44:04]} {[%emt 00:01:42]} 14. e5 {[%clk 00:48:27]} {[%emt 00:02:40]} Ne4
{[%clk 00:38:54]} {[%emt 00:05:39]} 15. Qe3 {[%clk 00:48:40]} {[%emt 00:00:17]}
d5 {[%clk 00:35:34]} {[%emt 00:03:51]} 16. Nc3 {[%clk 00:47:05]} {[%emt
00:02:05]} O-O {[%clk 00:24:41]} {[%emt 00:11:23]} 17. Nxd5 {[%clk 00:39:18]}
{[%emt 00:08:17]} Ne7 {[%clk 00:25:00]} {[%emt 00:00:10]} 18. Nxe7+ {[%clk
00:31:34]} {[%emt 00:08:14]} Qxe7 {[%clk 00:25:23]} {[%emt 00:00:06]} 19. c3
{[%clk 00:29:51]} {[%emt 00:02:14]} Kh8 {[%clk 00:24:27]} {[%emt 00:01:26]} 20.
Ra7 {[%clk 00:27:24]} {[%emt 00:02:58]} Bc6 {[%clk 00:23:42]} {[%emt 00:01:15]}
21. Re1 {[%clk 00:22:01]} {[%emt 00:05:53]} f5 {[%clk 00:21:15]} {[%emt
00:02:56]} 22. exf6 {[%clk 00:20:05]} {[%emt 00:02:25]} Qxf6 {[%clk 00:20:18]}
{[%emt 00:01:28]} 23. Rxc7 {[%clk 00:17:14]} {[%emt 00:03:22]} Rbe8 {[%clk
00:18:50]} {[%emt 00:01:57]} 24. Qd4 {[%clk 00:17:34]} {[%emt 00:00:10]} Nxc3
{[%clk 00:18:01]} {[%emt 00:01:19]} 25. Qd2 {[%clk 00:11:41]} {[%emt 00:06:24]}
Ne4 {[%clk 00:16:02]} {[%emt 00:02:28]} 26. Qb4 {[%clk 00:11:31]} {[%emt
00:00:41]} Ba8 {[%clk 00:15:41]} {[%emt 00:00:51]} 27. Be3 {[%clk 00:10:31]}
{[%emt 00:01:30]} Nd6 {[%clk 00:14:45]} {[%emt 00:01:25]} 28. Qd2 {[%clk
00:04:51]} {[%emt 00:06:10]} Nf5 {[%clk 00:14:01]} {[%emt 00:01:14]} 29. Bc5
{[%clk 00:03:19]} {[%emt 00:02:02]} Rxe1+ {[%clk 00:04:48]} {[%emt 00:09:43]}
30. Qxe1 {[%clk 00:33:47]} {[%emt 00:00:02]} Qxb2 {[%clk 00:34:57]} {[%emt
00:00:22]} 31. Qf2 {[%clk 00:33:58]} {[%emt 00:00:19]} Qxb3 {[%clk 00:28:50]}
{[%emt 00:06:37]} 32. Bxf8 {[%clk 00:34:05]} {[%emt 00:00:22]} Qd1+ {[%clk
00:26:30]} {[%emt 00:02:50]} 33. Qf1 {[%clk 00:34:30]} {[%emt 00:00:05]} Qd4+
{[%clk 00:26:36]} {[%emt 00:00:25]} 34. Kh1 {[%clk 00:25:49]} {[%emt 00:09:10]}
Bxg2+ {[%clk 00:19:39]} {[%emt 00:07:28]} 35. Qxg2 {[%clk 00:25:57]} {[%emt
00:00:22]} Qa1+ {[%clk 00:19:48]} {[%emt 00:00:21]} 36. Qg1 {[%clk 00:26:21]}
{[%emt 00:00:06]} Qa8+ {[%clk 00:20:14]} {[%emt 00:00:04]} 37. Qg2 {[%clk
00:26:47]} {[%emt 00:00:04]} Qa1+ {[%clk 00:20:29]} {[%emt 00:00:15]} 38. Qg1
{[%clk 00:27:13]} {[%emt 00:00:05]} Qa8+ {[%clk 00:20:53]} {[%emt 00:00:06]}
1/2-1/2

[Event "Paul Keres Memorial Festival 2022"]
[Site "Pärnu, Estonia Resort Hotel & Spa"]
[Date "2022.07.21"]
[Round "7.2"]
[White "Andrijashkin, Deniss"]
[Black "Maiorov, Nikita"]
[Result "0-1"]
[TimeControl "60 min for 30 moves + 30 min until game end, from first move every move 30 sec time increment"]
[BlackTitle "GM"]
[WhiteFideId "4504631"]
[BlackFideId "13501720"]
[WhiteElo "2006"]
[BlackElo "2474"]

1. c4 {[%clk 00:57:08]} {[%emt 00:03:45]} Nf6 {[%clk 00:57:00]} {[%emt
00:04:05]} 2. Nf3 {[%clk 00:57:23]} {[%emt 00:00:15]} e6 {[%clk 00:57:21]}
{[%emt 00:00:10]} 3. g3 {[%clk 00:57:36]} {[%emt 00:00:16]} d5 {[%clk
00:57:47]} {[%emt 00:00:04]} 4. Bg2 {[%clk 00:56:40]} {[%emt 00:01:26]} c5
{[%clk 00:58:02]} {[%emt 00:00:15]} 5. O-O {[%clk 00:54:56]} {[%emt 00:02:13]}
Nc6 {[%clk 00:58:21]} {[%emt 00:00:12]} 6. d4 {[%clk 00:38:57]} {[%emt
00:16:29]} Be7 {[%clk 00:58:40]} {[%emt 00:00:10]} 7. Nc3 {[%clk 00:38:09]}
{[%emt 00:01:19]} O-O {[%clk 00:58:36]} {[%emt 00:00:33]} 8. cxd5 {[%clk
00:37:23]} {[%emt 00:01:16]} exd5 {[%clk 00:59:03]} {[%emt 00:00:03]} 9. Bf4
{[%clk 00:33:19]} {[%emt 00:04:33]} Bg4 {[%clk 00:53:25]} {[%emt 00:06:08]} 10.
dxc5 {[%clk 00:32:23]} {[%emt 00:01:27]} Bxc5 {[%clk 00:53:23]} {[%emt
00:00:32]} 11. Rc1 {[%clk 00:30:46]} {[%emt 00:02:06]} Be7 {[%clk 00:47:58]}
{[%emt 00:05:56]} 12. Nd4 {[%clk 00:23:59]} {[%emt 00:07:17]} Qd7 {[%clk
00:43:02]} {[%emt 00:05:27]} 13. Qd3 {[%clk 00:19:14]} {[%emt 00:05:09]} Rac8
{[%clk 00:37:22]} {[%emt 00:06:15]} 14. Rfd1 {[%clk 00:17:07]} {[%emt
00:02:36]} Rfe8 {[%clk 00:33:03]} {[%emt 00:04:49]} 15. Nb3 {[%clk 00:13:47]}
{[%emt 00:03:50]} Bb4 {[%clk 00:23:44]} {[%emt 00:09:50]} 16. Nxd5 {[%clk
00:06:29]} {[%emt 00:07:47]} Nxd5 {[%clk 00:23:55]} {[%emt 00:00:19]} 17. Qxd5
{[%clk 00:06:48]} {[%emt 00:00:12]} Qxd5 {[%clk 00:21:56]} {[%emt 00:02:28]} 18.
Rxd5 {[%clk 00:07:09]} {[%emt 00:00:09]} Rxe2 {[%clk 00:22:21]} {[%emt
00:00:06]} 19. Rb5 {[%clk 00:05:57]} {[%emt 00:01:41]} Nd4 {[%clk 00:15:14]}
{[%emt 00:07:38]} 20. Rxc8+ {[%clk 00:05:15]} {[%emt 00:01:12]} Bxc8 {[%clk
00:15:39]} {[%emt 00:00:03]} 21. Re5 {[%clk 00:03:49]} {[%emt 00:01:51]} Bd6
{[%clk 00:11:52]} {[%emt 00:04:23]} 22. Re4 {[%clk 00:00:31]} {[%emt 00:03:49]}
Rxe4 {[%clk 00:11:57]} {[%emt 00:00:25]} 23. Bxe4 {[%clk 00:00:50]} {[%emt
00:00:09]} Ne2+ {[%clk 00:12:02]} {[%emt 00:00:27]} 0-1

[Event "Paul Keres Memorial Festival 2022"]
[Site "Pärnu, Estonia Resort Hotel & Spa"]
[Date "2022.07.21"]
[Round "7.3"]
[White "Smirnov, Artem"]
[Black "Olde, Karl Erik"]
[Result "1-0"]
[TimeControl "60 min for 30 moves + 30 min until game end, from first move every move 30 sec time increment"]
[WhiteTitle "IM"]
[WhiteFideId "4143256"]
[BlackFideId "4505760"]
[WhiteElo "2419"]
[BlackElo "1842"]

1. d4 {[%clk 01:00:56]} {[%emt 00:00:02]} d5 {[%clk 01:00:45]} {[%emt
00:00:15]} 2. c4 {[%clk 01:01:21]} {[%emt 00:00:05]} e6 {[%clk 01:01:08]}
{[%emt 00:00:07]} 3. Nc3 {[%clk 01:01:47]} {[%emt 00:00:04]} Nf6 {[%clk
01:01:34]} {[%emt 00:00:05]} 4. cxd5 {[%clk 01:02:11]} {[%emt 00:00:05]} exd5
{[%clk 01:01:59]} {[%emt 00:00:05]} 5. Bg5 {[%clk 01:02:36]} {[%emt 00:00:05]}
Be7 {[%clk 01:00:15]} {[%emt 00:02:14]} 6. e3 {[%clk 01:02:59]} {[%emt
00:00:06]} O-O {[%clk 00:59:41]} {[%emt 00:01:04]} 7. Bd3 {[%clk 01:03:19]}
{[%emt 00:00:11]} c6 {[%clk 00:58:54]} {[%emt 00:01:18]} 8. Qc2 {[%clk
01:02:35]} {[%emt 00:01:13]} Nbd7 {[%clk 00:57:54]} {[%emt 00:01:31]} 9. Nf3
{[%clk 01:01:44]} {[%emt 00:01:20]} Re8 {[%clk 00:54:39]} {[%emt 00:03:46]} 10.
O-O {[%clk 01:02:02]} {[%emt 00:00:11]} h6 {[%clk 00:53:42]} {[%emt 00:01:27]}
11. Bf4 {[%clk 01:01:56]} {[%emt 00:00:35]} Nf8 {[%clk 00:52:06]} {[%emt
00:02:06]} 12. h3 {[%clk 01:01:26]} {[%emt 00:00:59]} Bd6 {[%clk 00:48:16]}
{[%emt 00:04:21]} 13. Ne5 {[%clk 00:47:58]} {[%emt 00:13:58]} Be6 {[%clk
00:43:03]} {[%emt 00:05:43]} 14. Bg3 {[%clk 00:37:30]} {[%emt 00:10:58]} Nh5
{[%clk 00:38:38]} {[%emt 00:04:55]} 15. Bh2 {[%clk 00:36:56]} {[%emt 00:01:04]}
g6 {[%clk 00:38:31]} {[%emt 00:00:38]} 16. f4 {[%clk 00:28:10]} {[%emt
00:09:15]} Ng7 {[%clk 00:35:49]} {[%emt 00:03:12]} 17. g4 {[%clk 00:27:48]}
{[%emt 00:00:52]} f5 {[%clk 00:30:30]} {[%emt 00:05:50]} 18. Qg2 {[%clk
00:23:53]} {[%emt 00:04:25]} Qc8 {[%clk 00:27:32]} {[%emt 00:03:28]} 19. Rac1
{[%clk 00:19:20]} {[%emt 00:05:03]} Bxe5 {[%clk 00:25:52]} {[%emt 00:02:10]} 20.
fxe5 {[%clk 00:18:52]} {[%emt 00:00:58]} Qd7 {[%clk 00:24:11]} {[%emt
00:02:12]} 21. Be2 {[%clk 00:08:04]} {[%emt 00:11:17]} Nh7 {[%clk 00:20:55]}
{[%emt 00:03:45]} 22. Rf2 {[%clk 00:04:54]} {[%emt 00:03:41]} Rf8 {[%clk
00:17:58]} {[%emt 00:03:27]} 23. Rcf1 {[%clk 00:03:59]} {[%emt 00:01:24]} Rf7
{[%clk 00:13:19]} {[%emt 00:05:09]} 24. Bf4 {[%clk 00:01:44]} {[%emt 00:02:45]}
g5 {[%clk 00:13:10]} {[%emt 00:00:40]} 25. Bh2 {[%clk 00:02:09]} {[%emt
00:00:05]} Nf8 {[%clk 00:12:43]} {[%emt 00:00:57]} 26. h4 {[%clk 00:01:11]}
{[%emt 00:01:28]} Nh7 {[%clk 00:11:41]} {[%emt 00:01:32]} 27. hxg5 {[%clk
00:00:50]} {[%emt 00:00:50]} Nxg5 {[%clk 00:11:48]} {[%emt 00:00:24]} 28. Bf4
{[%clk 00:00:46]} {[%emt 00:00:33]} fxg4 {[%clk 00:11:40]} {[%emt 00:00:39]} 29.
Bxg5 {[%clk 00:01:08]} {[%emt 00:00:07]} Rxf2 {[%clk 00:12:07]} {[%emt
00:00:04]} 30. Qxf2 {[%clk 00:30:57]} {[%emt 00:00:40]} hxg5 {[%clk 00:42:03]}
{[%emt 00:00:34]} 31. Qf6 {[%clk 00:13:06]} {[%emt 00:18:21]} Qd8 {[%clk
00:27:35]} {[%emt 00:14:58]} 32. Qh6 {[%clk 00:06:35]} {[%emt 00:07:01]} Qd7
{[%clk 00:20:54]} {[%emt 00:07:11]} 33. Bd3 {[%clk 00:03:44]} {[%emt 00:03:21]}
Bf5 {[%clk 00:21:03]} {[%emt 00:00:22]} 34. Bxf5 {[%clk 00:02:00]} {[%emt
00:02:13]} Nxf5 {[%clk 00:21:25]} {[%emt 00:00:08]} 35. Qxg5+ {[%clk 00:02:24]}
{[%emt 00:00:06]} Ng7 {[%clk 00:21:49]} {[%emt 00:00:06]} 36. Rf6 {[%clk
00:02:11]} {[%emt 00:00:43]} Rf8 {[%clk 00:20:43]} {[%emt 00:01:37]} 37. Ne2
{[%clk 00:02:34]} {[%emt 00:00:07]} c5 {[%clk 00:18:57]} {[%emt 00:02:15]} 38.
Ng3 {[%clk 00:00:33]} {[%emt 00:02:31]} cxd4 {[%clk 00:18:38]} {[%emt
00:00:50]} 39. Nf5 {[%clk 00:00:38]} {[%emt 00:00:25]} d3 {[%clk 00:11:20]}
{[%emt 00:07:48]} 40. Nh6+ {[%clk 00:00:47]} {[%emt 00:00:21]} Kh8 {[%clk
00:11:38]} {[%emt 00:00:12]} 41. Rxf8+ {[%clk 00:01:10]} {[%emt 00:00:07]} Kh7
{[%clk 00:12:05]} {[%emt 00:00:03]} 42. Nxg4 {[%clk 00:01:20]} {[%emt
00:00:20]} 1-0